fUST/lending_fUST_20260115
["ID","MTS","AMOUNT","RATE_DAILY","PERIOD"]
[401968013,1768427440844,-500.0,0.00013698,2]
[401968014,1768427440853,-500.0,0.00013698,2]
[401968016,1768427440863,-500.0,0.00013698,2]
[401968019,1768427440873,-500.0,0.00013698,2]
[401968021,1768427440882,-500.0,0.00013698,2]
[401968023,1768427440891,-500.0,0.00013698,2]
[401968024,1768427440901,-500.0,0.00013698,2]
[401968026,1768427440910,-500.0,0.00013698,2]
[401968028,1768427440921,-500.0,0.00013698,2]
[401968030,1768427440930,-500.0,0.00013698,2]
[401968032,1768427440939,-1000.0,0.00013698,2]
[401968034,1768427440948,-1000.0,0.00013698,2]
[401968036,1768427440958,-1000.0,0.00013698,2]
[401968038,1768427440967,-1000.0,0.00013698,2]
[401968040,1768427440976,-1000.0,0.00013698,2]
[401968042,1768427440985,-1000.0,0.00013698,2]
[401968044,1768427440994,-500.0,0.00013698,2]
[401968046,1768427441002,-500.0,0.00013698,2]
[401968048,1768427441012,-500.0,0.00013698,2]
[401968050,1768427441024,-500.0,0.00013698,2]
[401968052,1768427441034,-550.39437847,0.00013698,2]
[401968054,1768427441044,-563.44,0.00013698,2]
[401968056,1768427441054,-563.44,0.00013698,2]
[401968058,1768427441064,-563.44,0.00013698,2]
[401968060,1768427441073,-563.44,0.00013698,2]
[401968062,1768427441082,-563.44,0.00013698,2]
[401968064,1768427441093,-563.44,0.00013698,2]
[401968066,1768427441102,-500.0,0.00013698,2]
[401968068,1768427441112,-500.0,0.00013698,2]
[401968070,1768427441121,-500.0,0.00013698,2]
[401968072,1768427441131,-500.0,0.00013698,2]
[401968075,1768427441140,-500.0,0.00013698,2]
[401968076,1768427441149,-500.0,0.00013698,2]
[401968078,1768427441158,-500.0,0.00013698,2]
[401968080,1768427441167,-500.0,0.00013698,2]
[401968082,1768427441176,-453.8287473,0.00013698,2]
[401968084,1768427441185,-518.87817295,0.00013698,2]
[401968086,1768427441195,-504.29229129,0.00013698,2]
[401968088,1768427441204,-500.0,0.00013698,2]
[401968090,1768427441213,-500.0,0.00013698,2]
[401968104,1768427441375,-500.0,0.00013698,2]
[401968106,1768427441384,-559.52204836,0.00013698,2]
[401968108,1768427441393,-931.46,0.00013698,2]
[401968110,1768427441402,-931.46,0.00013698,2]
[401968112,1768427441411,-931.46,0.00013698,2]
[401968114,1768427441420,-931.46,0.00013698,2]
[401968116,1768427441429,-931.46,0.00013698,2]
[401968118,1768427441438,-931.46,0.00013698,2]
[401968120,1768427441447,-931.46,0.00013698,2]
[401968122,1768427441456,-931.46,0.00013698,2]
[401968124,1768427441464,-931.46,0.00013698,2]
[401968126,1768427441474,-931.46,0.00013698,2]
[401968128,1768427441483,-931.46,0.00013698,2]
[401968130,1768427441492,-931.46,0.00013698,2]
[401968132,1768427441501,-931.46,0.00013698,2]
[401968134,1768427441510,-931.46,0.00013698,2]
[401968136,1768427441518,-931.46,0.00013698,2]
[401968138,1768427441527,-931.46,0.00013698,2]
[401968140,1768427441536,-931.46,0.00013698,2]
[401968142,1768427441546,-931.46,0.00013698,2]
[401968144,1768427441555,-931.46,0.00013698,2]
[401968146,1768427441564,-931.46,0.00013698,2]
[401968148,1768427441573,-931.46,0.00013698,2]
[401968150,1768427441583,-931.46,0.00013698,2]
[401968152,1768427441591,-931.46,0.00013698,2]
[401968154,1768427441600,-931.54262824,0.00013698,2]
[401968156,1768427441609,-500.0,0.00013698,2]
[401968158,1768427441618,-500.0,0.00013698,2]
[401968160,1768427441626,-500.0,0.00013698,2]
[401968162,1768427441635,-500.0,0.00013698,2]
[401968164,1768427441643,-500.0,0.00013698,2]
[401968166,1768427441655,-500.0,0.00013698,2]
[401968168,1768427441664,-500.0,0.00013698,2]
[401968170,1768427441673,-500.0,0.00013698,2]
[401968172,1768427441682,-500.0,0.00013698,2]
[401968174,1768427441690,-500.0,0.00013698,2]
[401968176,1768427441699,-500.0,0.00013698,2]
[401968178,1768427441708,-500.0,0.00013698,2]
[401968180,1768427441716,-500.0,0.00013698,2]
[401968182,1768427441725,-500.0,0.00013698,2]
[401968184,1768427441734,-500.0,0.00013698,2]
[401968186,1768427441742,-500.0,0.00013698,2]
[401968187,1768427441751,-500.0,0.00013698,2]
[401968188,1768427441761,-500.0,0.00013698,2]
[401968189,1768427441770,-500.0,0.00013698,2]
[401968190,1768427441780,-396.20769079,0.00013698,2]
[401968191,1768427441789,-1000.0,0.00013699,2]
[401968192,1768427441798,-500.0,0.00013699,2]
[401968193,1768427441807,-500.0,0.00013699,2]
[401968194,1768427441816,-500.0,0.00013699,2]
[401968195,1768427441825,-500.0,0.00013699,2]
[401968196,1768427441834,-500.0,0.00013699,2]
[401968197,1768427441844,-500.0,0.00013699,2]
[401968198,1768427441853,-500.0,0.00013699,2]
[401968199,1768427441862,-500.0,0.00013699,2]
[401968200,1768427441871,-500.0,0.00013699,2]
[401968201,1768427441880,-500.0,0.00013699,2]
[401968202,1768427441889,-500.0,0.00013699,2]
[401968203,1768427441898,-413.79090585,0.00013699,2]
[401968204,1768427441908,-500.0,0.00013699,2]
[401968205,1768427441916,-500.0,0.00013699,2]
[401968206,1768427441925,-158.55908659,0.00013699,2]
[401968207,1768427441935,-500.0,0.00013699,2]
[401968208,1768427441944,-500.0,0.00013699,2]
[401968209,1768427441953,-506.34451005,0.00013699,2]
[401968210,1768427441962,-500.91728774,0.00013699,2]
[401968211,1768427441972,-500.0,0.00013699,2]
[401968212,1768427441982,-500.0,0.00013699,2]
[401968213,1768427441991,-500.0,0.00013699,2]
[401968214,1768427442000,-500.0,0.00013699,2]
[401968215,1768427442010,-500.0,0.00013699,2]
[401968216,1768427442021,-500.0,0.00013699,2]
[401968217,1768427442030,-500.0,0.00013699,2]
[401968218,1768427442039,-500.0,0.00013699,2]
[401968219,1768427442052,-500.0,0.00013699,2]
[401968220,1768427442065,-500.0,0.00013699,2]
[401968221,1768427442075,-500.0,0.00013699,2]
[401968222,1768427442084,-500.0,0.00013699,2]
[401968223,1768427442094,-500.0,0.00013699,2]
[401968224,1768427442104,-500.0,0.00013699,2]
[401968225,1768427442113,-500.0,0.00013699,2]
[401968226,1768427442122,-500.0,0.00013699,2]
[401968227,1768427442131,-500.0,0.00013699,2]
[401968228,1768427442140,-500.0,0.00013699,2]
[401968229,1768427442150,-500.0,0.00013699,2]
[401968230,1768427442159,-500.0,0.00013699,2]
[401968231,1768427442167,-500.28466628,0.00013699,2]
[401968232,1768427442176,-500.0,0.00013699,2]
[401968233,1768427442186,-500.0,0.00013699,2]
[401968234,1768427442195,-500.18151146,0.00013699,2]
[401968235,1768427442204,-500.0,0.00013699,2]
[401968236,1768427442213,-301.86126485,0.00013699,2]
[401968237,1768427442223,-500.0,0.00013699,2]
[401968238,1768427442232,-370.92368598,0.00013699,2]
[401968239,1768427442241,-500.0,0.00013699,2]
[401968240,1768427442250,-500.0,0.00013699,2]
[401968241,1768427442259,-500.0,0.00013699,2]
[401968242,1768427442268,-443.99780341,0.00013699,2]
[401968243,1768427442278,-500.0,0.00013699,2]
[401968244,1768427442287,-500.0,0.00013699,2]
[401968245,1768427442296,-501.1212268,0.00013699,2]
[401968246,1768427442305,-500.0,0.00013699,2]
[401968247,1768427442314,-500.0,0.00013699,2]
[401968248,1768427442324,-500.0,0.00013699,2]
[401968249,1768427442335,-500.0,0.00013699,2]
[401968250,1768427442344,-500.0,0.00013699,2]
[401968251,1768427442353,-500.0,0.00013699,2]
[401968252,1768427442362,-500.0,0.00013699,2]
[401968253,1768427442371,-501.05002058,0.00013699,2]
[401968254,1768427442380,-500.0,0.00013699,2]
[401968255,1768427442389,-500.0,0.00013699,2]
[401968256,1768427442398,-500.0,0.00013699,2]
[401968257,1768427442407,-500.0,0.00013699,2]
[401968258,1768427442416,-500.0,0.00013699,2]
[401968259,1768427442425,-500.0,0.00013699,2]
[401968260,1768427442435,-500.10410433,0.00013699,2]
[401968261,1768427442444,-500.0,0.00013699,2]
[401968262,1768427442453,-500.0,0.00013699,2]
[401968263,1768427442461,-500.0,0.00013699,2]
[401968264,1768427442470,-500.0,0.00013699,2]
[401968265,1768427442479,-720.0,0.0001372,2]
[401968266,1768427442487,-10000.0,0.00013775,2]
[401968267,1768427442498,-4839.12,0.00013775,2]
[401968268,1768427442507,-151.0,0.000138,2]
[401968269,1768427442516,-1000.0,0.00013821,2]
[401968270,1768427442525,-440.24648614,0.00013821,2]
[401968271,1768427442535,-1000.0,0.00013821,2]
[401968272,1768427442544,-1000.0,0.00013821,2]
[401968273,1768427442554,-1056.99110983,0.00013821,2]
[401968274,1768427442563,-1000.0,0.00013821,2]
[401968275,1768427442572,-1000.0,0.00013821,2]
[401968276,1768427442581,-1000.0,0.00013821,2]
[401968277,1768427442590,-1000.0,0.00013821,2]
[401968278,1768427442599,-1000.0,0.00013821,2]
[401968279,1768427442607,-1000.0,0.00013821,2]
[401968280,1768427442617,-500.41691689,0.00013821,2]
[401968281,1768427442626,-1000.0,0.00013821,2]
[401968282,1768427442635,-1002.88869488,0.00013821,2]
[401968283,1768427442644,-1000.0,0.00013821,2]
[401968284,1768427442654,-501.85584568,0.00013821,2]
[401968285,1768427442663,-1000.0,0.00013821,2]
[401968286,1768427442672,-1000.0,0.00013821,2]
[401968287,1768427442681,-1000.0,0.00013821,2]
[401968288,1768427442690,-1000.0,0.00013821,2]
[401968289,1768427442699,-1000.0,0.00013821,2]
[401968290,1768427442708,-1003.63165228,0.00013821,2]
[401968291,1768427442717,-1000.0,0.00013821,2]
[401968292,1768427442727,-886.78841051,0.00013821,2]
[401968293,1768427442736,-1000.0,0.00013821,2]
[401968294,1768427442745,-695.77760179,0.00013821,2]
[401968295,1768427442755,-1106.75656303,0.00013821,2]
[401968296,1768427442764,-1000.0,0.00013821,2]
[401968297,1768427442773,-1000.0,0.00013821,2]
[401968298,1768427442782,-1000.0,0.00013821,2]
[401968299,1768427442791,-1000.0,0.00013821,2]
[401968300,1768427442800,-1000.0,0.00013821,2]
[401968301,1768427442809,-1000.0,0.00013821,2]
[401968302,1768427442818,-891.51090458,0.00013821,2]
[401968303,1768427442827,-1000.0,0.00013821,2]
[401968304,1768427442837,-1000.0,0.00013821,2]
[401968305,1768427442845,-946.5684735,0.00013821,2]
[401968306,1768427442854,-1000.0,0.00013821,2]
[401968307,1768427442864,-1000.0,0.00013821,2]
[401968308,1768427442873,-1000.0,0.00013821,2]
[401968309,1768427442886,-784.00644743,0.00013821,2]
[401968310,1768427442898,-204.52635897,0.00013821,2]
[401968311,1768427442912,-500.0,0.00013821,2]
[401968312,1768427442925,-500.0,0.00013821,2]
[401968313,1768427442938,-572.20378063,0.00013821,2]
[401968314,1768427442949,-10945.40487951,0.00013826,2]
[401968316,1768427442962,-500.0,0.00013958,2]
[401968317,1768427442974,-500.0,0.00013958,2]
[401968318,1768427442986,-151.0,0.00014,2]
[401968319,1768427442999,-429.09707327,0.00014095,2]
[401968320,1768427443012,-500.0,0.00014095,2]
[401968321,1768427443026,-600.0,0.00014221,2]
[401968322,1768427443038,-500.0,0.00014232,2]
[401968323,1768427443051,-813.15709068,0.00014247,2]
[401968324,1768427443067,-500.73561513,0.00014247,2]
[401968325,1768427443079,-1000.0,0.00014247,2]
[401968326,1768427443090,-1000.0,0.00014247,2]
[401968327,1768427443103,-1000.0,0.00014247,2]
[401968328,1768427443115,-500.31646223,0.00014247,2]
[401968329,1768427443126,-253.04828186,0.00014247,2]
[401968330,1768427443138,-504.71400239,0.00014247,2]
[401968331,1768427443151,-500.64767098,0.00014247,2]
[401968332,1768427443164,-1000.0,0.00014247,2]
[401968334,1768427443176,-1000.0,0.00014247,2]
[401968336,1768427443186,-1000.0,0.00014247,2]
[401968338,1768427443196,-1000.0,0.00014247,2]
[401968340,1768427443207,-809.68519743,0.00014247,2]
[401968343,1768427443219,-501.74975073,0.00014247,2]
[401968345,1768427443230,-501.21795351,0.00014247,2]
[401968347,1768427443242,-1001.31706943,0.00014247,2]
[401968348,1768427443253,-1000.0,0.00014247,2]
[401968349,1768427443265,-1000.62157755,0.00014247,2]
[401968350,1768427443277,-1000.0,0.00014247,2]
[401968351,1768427443289,-559.26251357,0.00014247,2]
[401968352,1768427443301,-1000.0,0.00014247,2]
[401968353,1768427443315,-1000.0,0.00014247,2]
[401968354,1768427443328,-1000.0,0.00014247,2]
[401968355,1768427443338,-1000.0,0.00014247,2]
[401968356,1768427443348,-501.82501982,0.00014247,2]
[401968357,1768427443359,-1000.0,0.00014247,2]
[401968358,1768427443369,-1000.0,0.00014247,2]
[401968359,1768427443382,-1003.87539742,0.00014247,2]
[401968360,1768427443395,-1000.0,0.00014247,2]
[401968361,1768427443407,-693.53352259,0.00014247,2]
[401968362,1768427443418,-1000.0,0.00014247,2]
[401968363,1768427443429,-1000.0,0.00014247,2]
[401968364,1768427443440,-1000.0,0.00014247,2]
[401968365,1768427443451,-930.92904569,0.00014247,2]
[401968366,1768427443464,-685.95842189,0.00014247,2]
[401968367,1768427443476,-526.2087109,0.00014247,2]
[401968368,1768427443486,-250.0,0.00014247,2]
[401968369,1768427443496,-501.04290038,0.00014247,2]
[401968370,1768427443506,-1000.0,0.00014247,2]
[401968371,1768427443517,-1000.0,0.00014247,2]
[401968372,1768427443528,-1000.0,0.00014247,2]
[401968373,1768427443538,-1000.0,0.00014247,2]
[401968374,1768427443549,-1000.0,0.00014247,2]
[401968375,1768427443560,-1000.0,0.00014247,2]
[401968376,1768427443571,-1000.0,0.00014247,2]
[401968377,1768427443582,-1000.0,0.00014247,2]
[401968378,1768427443592,-1000.0,0.00014247,2]
[401968379,1768427443604,-1000.0,0.00014247,2]
[401968380,1768427443614,-519.65670355,0.00014247,2]
[401968381,1768427443625,-1000.0,0.00014247,2]
[401968382,1768427443637,-1087.16663197,0.00014247,2]
[401968383,1768427443648,-1000.0,0.00014247,2]
[401968384,1768427443659,-1000.0,0.00014247,2]
[401968385,1768427443670,-990.87296502,0.00014247,2]
[401968386,1768427443680,-1000.0,0.00014247,2]
[401968387,1768427443691,-1000.0,0.00014247,2]
[401968388,1768427443702,-1000.0,0.00014247,2]
[401968389,1768427443712,-343.96245491,0.00014247,2]
[401968390,1768427443724,-501.3857634,0.00014247,2]
[401968391,1768427443737,-504.58578591,0.00014247,2]
[401968392,1768427443748,-495.46744819,0.0001429,2]
[401968393,1768427443759,-271.86141758,0.00014368,2]
[401968394,1768427443770,-653.79187063,0.00014368,2]
[401968395,1768427443781,-1500.0,0.00014368,2]
[401968396,1768427443792,-1500.0,0.00014368,2]
[401968397,1768427443803,-1500.0,0.00014368,2]
[401968398,1768427443815,-1500.0,0.00014368,2]
[401968399,1768427443826,-1500.0,0.00014368,2]
[401968400,1768427443837,-1500.0,0.00014368,2]
[401968401,1768427443849,-1500.0,0.00014368,2]
[401968402,1768427443860,-1500.0,0.00014368,2]
[401968403,1768427443871,-1002.68632401,0.00014368,2]
[401968404,1768427443883,-1500.0,0.00014368,2]
[401968405,1768427443894,-1500.0,0.00014368,2]
[401968406,1768427443905,-1500.0,0.00014368,2]
[401968407,1768427443916,-1500.0,0.00014368,2]
[401968408,1768427443927,-1500.0,0.00014368,2]
[401968409,1768427443937,-1500.0,0.00014368,2]
[401968410,1768427443949,-1500.0,0.00014368,2]
[401968411,1768427443960,-1158.07183809,0.00014368,2]
[401968412,1768427443971,-1500.0,0.00014368,2]
[401968413,1768427443981,-1500.0,0.00014368,2]
[401968414,1768427443992,-1003.01901965,0.00014368,2]
[401968415,1768427444003,-739.23149088,0.00014368,2]
[401968416,1768427444016,-1500.0,0.00014368,2]
[401968417,1768427444027,-1500.0,0.00014368,2]
[401968418,1768427444038,-1500.0,0.00014368,2]
[401968419,1768427444049,-1500.0,0.00014368,2]
[401968420,1768427444061,-1500.0,0.00014368,2]
[401968421,1768427444072,-1522.04357159,0.00014368,2]
[401968422,1768427444085,-500.0,0.00014369,2]
[401968423,1768427444095,-567.79,0.00014443,2]
[401968424,1768427444106,-567.79,0.00014443,2]
[401968425,1768427444117,-567.79,0.00014443,2]
[401968426,1768427444128,-567.79,0.00014443,2]
[401968427,1768427444139,-567.79,0.00014443,2]
[401968428,1768427444152,-500.0,0.00014443,2]
[401968429,1768427444163,-500.0,0.00014443,2]
[401968430,1768427444174,-500.0,0.00014443,2]
[401968431,1768427444186,-279.9,0.00014443,2]
[401968432,1768427444198,-500.0,0.00014443,2]
[401968433,1768427444209,-500.0,0.00014443,2]
[401968434,1768427444220,-500.0,0.00014443,2]
[401968435,1768427444232,-1000.0,0.00014443,2]
[401968436,1768427444243,-1017.75755303,0.00014443,2]
[401968437,1768427444254,-563.44,0.00014443,2]
[401968438,1768427444265,-563.44,0.00014443,2]
[401968439,1768427444276,-563.44,0.00014443,2]
[401968440,1768427444288,-563.44,0.00014443,2]
[401968441,1768427444299,-563.44,0.00014443,2]
[401968442,1768427444309,-100000.0,0.00014444,2]
[401968443,1768427444320,-823.0,0.00014485,2]
[401968444,1768427444331,-500.0,0.00014506,2]
[401968445,1768427444341,-5000.0,0.0001451,2]
[401968446,1768427444353,-500.0,0.00014643,2]
[401968447,1768427444364,-900.0,0.00014768,2]
[401968448,1768427444375,-269.0,0.0001478,2]
[401968449,1768427444386,-1165.99620392,0.00014795,2]
[401968450,1768427444396,-1500.0,0.00014795,2]
[401968451,1768427444408,-1500.0,0.00014795,2]
[401968452,1768427444418,-341.41978725,0.00014795,2]
[401968453,1768427444429,-1500.0,0.00014795,2]
[401968454,1768427444439,-501.28209032,0.00014795,2]
[401968455,1768427444450,-1500.0,0.00014795,2]
[401968456,1768427444461,-1082.85856265,0.00014795,2]
[401968457,1768427444471,-622.97821503,0.00014795,2]
[401968458,1768427444482,-317.50977535,0.00014795,2]
[401968459,1768427444492,-586.73306672,0.00014795,2]
[401968460,1768427444503,-1500.0,0.00014795,2]
[401968461,1768427444513,-1500.0,0.00014795,2]
[401968462,1768427444523,-1518.01129916,0.00014795,2]
[401968463,1768427444534,-1503.83285644,0.00014795,2]
[401968464,1768427444544,-1500.0,0.00014795,2]
[401968465,1768427444555,-1103.68651404,0.00014795,2]
[401968466,1768427444566,-1500.0,0.00014795,2]
[401968467,1768427444577,-419.62973898,0.00014795,2]
[401968468,1768427444587,-200.84224431,0.00014795,2]
[401968469,1768427444597,-1500.0,0.00014795,2]
[401968470,1768427444607,-1500.0,0.00014795,2]
[401968471,1768427444618,-1500.0,0.00014795,2]
[401968472,1768427444629,-449.7291255,0.00014795,2]
[401968473,1768427444639,-522.48598281,0.00014795,2]
[401968474,1768427444648,-1500.0,0.00014795,2]
[401968475,1768427444657,-1292.00440399,0.00014795,2]
[401968476,1768427444666,-827.64226173,0.00014795,2]
[401968477,1768427444676,-1500.0,0.00014795,2]
[401968478,1768427444685,-1500.0,0.00014795,2]
[401968479,1768427444694,-1051.15225971,0.00014795,2]
[401968484,1768427444900,-1500.0,0.00014795,2]
[401968485,1768427444931,-1500.0,0.00014795,2]
[401968486,1768427444946,-1500.0,0.00014795,2]
[401968487,1768427444956,-1500.0,0.00014795,2]
[401968488,1768427444965,-1479.00156205,0.00014795,2]
[401968489,1768427444974,-1000.0,0.000149,2]
[401968490,1768427444984,-1000.0,0.000149,2]
[401968491,1768427444994,-1000.0,0.000149,2]
[401968492,1768427445003,-1000.0,0.000149,2]
[401968493,1768427445012,-1000.0,0.000149,2]
[401968494,1768427445025,-1000.0,0.000149,2]
[401968495,1768427445034,-1000.0,0.000149,2]
[401968496,1768427445043,-1000.0,0.000149,2]
[401968497,1768427445052,-1000.0,0.000149,2]
[401968498,1768427445062,-1000.0,0.000149,2]
[401968499,1768427445072,-1503.99870158,0.00014916,2]
[401968500,1768427445081,-1123.81068567,0.00014916,2]
[401968501,1768427445091,-2000.0,0.00014916,2]
[401968502,1768427445100,-2000.0,0.00014916,2]
[401968503,1768427445110,-230.46949765,0.00014916,2]
[401968504,1768427445119,-2000.0,0.00014916,2]
[401968505,1768427445129,-2000.0,0.00014916,2]
[401968506,1768427445140,-2000.0,0.00014916,2]
[401968507,1768427445151,-733.4001228,0.00014916,2]
[401968508,1768427445162,-1984.11851224,0.00014916,2]
[401968509,1768427445173,-2000.0,0.00014916,2]
[401968510,1768427445183,-2000.0,0.00014916,2]
[401968511,1768427445194,-2000.0,0.00014916,2]
[401968512,1768427445203,-503.76788333,0.00014916,2]
[401968513,1768427445212,-2000.0,0.00014916,2]
[401968514,1768427445223,-2000.0,0.00014916,2]
[401968515,1768427445232,-1709.88778028,0.00014916,2]
[401968516,1768427445242,-2031.81939639,0.00014916,2]
[401968517,1768427445252,-788.90612665,0.00014916,2]
[401968518,1768427445261,-664.35893779,0.00014916,2]
[401968519,1768427445271,-2000.0,0.00014916,2]
[401968520,1768427445280,-2000.0,0.00014916,2]
[401968521,1768427445291,-567.79,0.00014999,2]
[401968522,1768427445300,-567.79,0.00014999,2]
[401968523,1768427445310,-567.79,0.00014999,2]
[401968524,1768427445319,-567.79,0.00014999,2]
[401968525,1768427445330,-567.79,0.00014999,2]
[401968526,1768427445340,-567.79,0.00014999,2]
[401968527,1768427445351,-567.79,0.00014999,2]
[401968528,1768427445360,-567.79,0.00014999,2]
[401968529,1768427445371,-567.79,0.00014999,2]
[401968530,1768427445381,-567.79,0.00014999,2]
[401968531,1768427445390,-567.79,0.00014999,2]
[401968532,1768427445400,-567.79,0.00014999,2]
[401968533,1768427445411,-567.93529864,0.00014999,2]
[401968534,1768427445422,-563.44,0.00014999,2]
[401968535,1768427445431,-563.44,0.00014999,2]
[401968536,1768427445442,-563.44,0.00014999,2]
[401968537,1768427445451,-563.44,0.00014999,2]
[401968538,1768427445462,-563.44,0.00014999,2]
[401968539,1768427445473,-563.44,0.00014999,2]
[401968540,1768427445482,-563.44,0.00014999,2]
[401968541,1768427445491,-563.44,0.00014999,2]
[401968542,1768427445501,-563.44,0.00014999,2]
[401968543,1768427445510,-563.44,0.00014999,2]
[401968544,1768427445519,-563.44,0.00014999,2]
[401968545,1768427445528,-563.44,0.00014999,2]
[401968546,1768427445537,-563.54678427,0.00014999,2]
[401968547,1768427445546,-800.0,0.00015068,2]
[401968548,1768427445556,-864.0,0.00015092,2]
[401968549,1768427445565,-155.96,0.000152,2]
[401968550,1768427445575,-1200.0,0.00015316,2]
[401968551,1768427445584,-646.70021057,0.00015342,2]
[401968552,1768427445593,-2000.0,0.00015342,2]
[401968553,1768427445602,-1003.42728186,0.00015342,2]
[401968554,1768427445611,-2000.0,0.00015342,2]
[401968555,1768427445620,-159.70838602,0.00015342,2]
[401968556,1768427445633,-2000.0,0.00015342,2]
[401968557,1768427445643,-2000.0,0.00015342,2]
[401968558,1768427445652,-2000.0,0.00015342,2]
[401968559,1768427445661,-2000.0,0.00015342,2]
[401968560,1768427445670,-2000.0,0.00015342,2]
[401968561,1768427445679,-2000.0,0.00015342,2]
[401968562,1768427445688,-2000.0,0.00015342,2]
[401968563,1768427445697,-373.84265648,0.00015342,2]
[401968564,1768427445706,-1501.41649607,0.00015342,2]
[401968565,1768427445715,-992.62086011,0.00015342,2]
[401968566,1768427445724,-1549.64,0.00015405,2]
[401968567,1768427445733,-2500.0,0.00015464,2]
[401968568,1768427445742,-2500.0,0.00015464,2]
[401968569,1768427445751,-2500.0,0.00015464,2]
[401968570,1768427445760,-2500.0,0.00015464,2]
[401968571,1768427445770,-2500.0,0.00015464,2]
[401968572,1768427445779,-2500.0,0.00015464,2]
[401968573,1768427445789,-1000.0,0.00015464,2]
[401968574,1768427445798,-2500.0,0.00015464,2]
[401968575,1768427445807,-2500.0,0.00015464,2]
[401968576,1768427445817,-2500.0,0.00015464,2]
[401968577,1768427445826,-2500.0,0.00015464,2]
[401968578,1768427445837,-2500.0,0.00015464,2]
[401968579,1768427445847,-4343.48,0.0001551,2]
[401968580,1768427445857,-10000.0,0.0001551,2]
[401968581,1768427445866,-10000.0,0.0001551,2]
[401968582,1768427445877,-10000.0,0.0001551,2]
[401968583,1768427445889,-10000.0,0.0001551,2]
[401968585,1768427445899,-1500.0,0.00015864,2]
[401968586,1768427445908,-559.4878042,0.0001589,2]
[401968587,1768427445918,-1211.66599686,0.0001589,2]
[401968588,1768427445927,-2500.0,0.0001589,2]
[401968589,1768427445937,-2500.0,0.0001589,2]
[401968590,1768427445947,-563.27896724,0.0001589,2]
[401968591,1768427445956,-2500.0,0.0001589,2]
[401968592,1768427445965,-2500.0,0.0001589,2]
[401968593,1768427445975,-2500.0,0.0001589,2]
[401968594,1768427445984,-2500.0,0.0001589,2]
[401968595,1768427445994,-155.5739919,0.00015905,2]
[401968596,1768427446003,-1152.0,0.00015918,2]
[401968597,1768427446014,-6621.22891406,0.00015986,2]
[401968598,1768427446024,-151.0,0.00016,2]
[401968599,1768427446034,-151.0,0.00016012,2]
[401968600,1768427446044,-151.0,0.00016012,2]
[401968601,1768427446053,-151.0,0.00016012,2]
[401968602,1768427446062,-151.0,0.00016012,2]
[401968604,1768427446072,-1171.14126243,0.00016012,2]
[401968606,1768427446082,-3000.0,0.00016012,2]
[401968607,1768427446093,-3000.0,0.00016012,2]
[401968608,1768427446102,-913.29712103,0.00016012,2]
[401968609,1768427446111,-3000.0,0.00016012,2]
[401968610,1768427446121,-1192.29139729,0.00016012,2]
[401968612,1768427446130,-3000.0,0.00016012,2]
[401968613,1768427446140,-2916.13825137,0.00016012,2]
[401968614,1768427446149,-3000.0,0.00016012,2]
[401968615,1768427446159,-3000.0,0.00016012,2]
[401968616,1768427446168,-3000.0,0.00016012,2]
[401968617,1768427446177,-1600.0,0.00016164,2]
[401968618,1768427446187,-561.04402221,0.0001629,2]
[401968619,1768427446196,-1800.0,0.00016412,2]
[401968620,1768427446205,-595.30780858,0.00016438,2]
[401968621,1768427446215,-500.0,0.00016438,2]